bitfinex/quotes_ETHUSD_20220103
["timestamp","ask_amount","ask_price","bid_price","bid_amount"]
[1641186475592,6.96723,3794.9,3794.8,12.15055412]
[1641186475791,8.26723,3794.9,3794.8,12.15055412]
[1641186477022,8.26723,3794.9,3794.8,6.21]
[1641186477223,10.61421514,3794.9,3794.8,6.21]
[1641186477826,6.66723,3794.9,3794.8,6.21]
[1641186478029,0.381,3794.9,3794.8,6.21]
[1641186478229,1.25285842,3795.8,3794.8,6.21]
[1641186478429,1.25285842,3794.9,3794.8,6.21]
[1641186479529,1.123402,3795.5,3794.8,6.21]
[1641186480027,1.123402,3795.5,3794.9,0.0119369]
[1641186480428,1.25285842,3795.4,3794.9,0.0119369]
[1641186480669,1.25285842,3795.4,3794.8,0.01250532]
[1641186481474,1.25285842,3795.5,3794.8,0.01250532]
[1641186482072,1.25285842,3795.3,3794.8,0.01250532]
[1641186482975,1.78925545,3795.7,3794.8,0.01250532]
[1641186483377,1.25285842,3795.2,3794.8,0.01250532]
[1641186484179,1.78925545,3795.6,3794.8,0.01250532]
[1641186486018,0.95871,3795.7,3794.8,0.01250532]
[1641186486218,0.65871,3795.7,3794.8,0.01250532]
[1641186486418,6.22761,3795.9,3794.8,0.01250532]
[1641186488274,6.22561,3795.9,3794.8,0.01250532]
[1641186488477,0.6587,3795.8,3794.8,0.01250532]
[1641186488879,1.9587,3795.8,3794.8,0.01250532]
[1641186489077,0.65878,3795.4,3794.8,0.01250532]
[1641186490475,1.61747,3795.6,3794.8,0.01250532]
[1641186490877,1.31747,3795.6,3794.8,0.01250532]
[1641186492022,1.61747,3795.6,3794.8,0.01250532]
[1641186494526,1.61747,3795.6,3794.3,4.83927864]
[1641186494928,0.00397897,3795.5,3794.4,0.00227369]
[1641186495229,0.00341054,3795.4,3794.4,0.00227369]
[1641186495677,0.66162212,3795.3,3794.4,0.00227369]
[1641186496073,0.00227369,3795.2,3794.4,0.00227369]
[1641186496473,0.00170527,3795.1,3794.4,0.00227369]
[1641186496876,0.00113685,3795.0,3794.4,0.00227369]
[1641186497385,0.00227369,3795.2,3794.4,0.00227369]
[1641186497780,0.00170527,3795.1,3794.4,0.00227369]
[1641186498181,0.00113685,3795.0,3794.4,0.00227369]
[1641186498581,0.00227369,3795.2,3794.4,0.00227369]
[1641186498981,0.00170527,3795.1,3794.4,0.00227369]
[1641186499185,0.00170527,3795.1,3794.4,2.58538225]
[1641186499422,0.00113685,3795.0,3794.4,0.03308738]
[1641186499626,0.00113685,3795.0,3794.5,0.00170527]
[1641186499823,0.00227369,3795.2,3794.5,0.00170527]
[1641186500225,0.00170527,3795.1,3794.5,0.00170527]
[1641186500628,0.00113685,3795.0,3794.5,0.00170527]
[1641186500924,0.00397897,3795.5,3794.5,0.00170527]
[1641186501124,0.00397897,3795.5,3794.7,1.39688204]
[1641186501323,0.00341054,3795.4,3794.7,1.39688204]
[1641186501729,0.00284212,3795.3,3794.7,1.39688204]
[1641186502125,0.00227369,3795.2,3794.7,1.39688204]
[1641186502528,0.00170527,3795.1,3794.7,1.39688204]
[1641186502923,0.65873,3795.6,3794.7,1.39688204]
[1641186502924,0.00113685,3795.0,3794.7,1.39688204]
[1641186503369,8.5847682,3795.9,3794.8,2.50166744]
[1641186503370,0.00397897,3795.5,3794.8,2.50166744]
[1641186503570,0.00397897,3795.5,3794.7,1.39688204]
[1641186503769,0.00341054,3795.4,3794.7,1.39688204]
[1641186504173,0.00284212,3795.3,3794.7,1.39688204]
[1641186504571,0.00227369,3795.2,3794.7,1.39688204]
[1641186504770,0.00227369,3795.2,3794.8,2.55353355]
[1641186504970,0.00170527,3795.1,3794.8,2.55353355]
[1641186505173,0.00170527,3795.1,3794.7,1.42769388]
[1641186505372,0.00113685,3795.0,3794.7,1.42769388]
[1641186505771,1.78925545,3795.4,3794.7,1.42769388]
[1641186505971,1.78925545,3795.4,3794.7,0.03081184]
[1641186506170,10.16187679,3795.9,3794.7,0.03081184]
[1641186506171,1.79209757,3795.3,3794.7,0.03081184]
[1641186506572,0.00227369,3795.2,3794.7,0.03081184]
[1641186507024,0.00170527,3795.1,3794.7,0.03081184]
[1641186507219,0.00170527,3795.1,3794.7,1.37384121]
[1641186507420,0.00113685,3795.0,3794.7,1.37384121]
[1641186507620,0.00113685,3795.0,3794.7,0.03081184]
[1641186507823,0.00227369,3795.2,3794.7,0.03081184]
[1641186508223,0.00170527,3795.1,3794.7,0.03081184]
[1641186508721,0.00113685,3795.0,3794.7,0.03081184]
[1641186509124,0.00341054,3795.4,3794.7,0.03081184]
[1641186509326,0.00341054,3795.4,3794.7,1.08556241]
[1641186509526,0.00284212,3795.3,3794.7,1.08556241]
[1641186509924,0.00227369,3795.2,3794.8,2.49640251]
[1641186510125,0.00227369,3795.2,3794.7,1.08556241]
[1641186510328,0.00170527,3795.1,3794.7,1.08556241]
[1641186510783,0.00113685,3795.0,3794.8,2.49281404]
[1641186511082,0.65869,3795.7,3794.8,2.34639861]
[1641186511083,2.98775158,3795.2,3794.8,2.34639861]
[1641186511481,0.00170527,3795.1,3794.7,3.59829403]
[1641186511686,0.00170527,3795.1,3794.7,1.08556241]
[1641186511883,1.78925545,3795.5,3794.7,1.08556241]
[1641186511884,0.00113685,3795.0,3794.7,1.08556241]
[1641186512283,0.00341054,3795.4,3794.7,3.62737643]
[1641186512484,0.00341054,3795.4,3794.7,3.60322853]
[1641186512684,4.77700703,3795.5,3794.7,1.08556241]
[1641186512685,0.00284212,3795.3,3794.7,1.08556241]
[1641186513083,0.00227369,3795.2,3794.7,1.08556241]
[1641186513486,0.00170527,3795.1,3794.7,1.08556241]
[1641186513885,0.00113685,3795.0,3794.7,1.08556241]
[1641186514322,0.00284212,3795.3,3794.7,1.08556241]
[1641186514735,0.00227369,3795.2,3794.7,1.08556241]
[1641186515125,0.00170527,3795.1,3794.8,2.53477725]
[1641186515329,2.65397462,3795.7,3795.5,0.02852435]
[1641186515531,2.65397462,3795.7,3795.6,0.381]
[1641186515532,0.02852435,3795.7,3795.6,0.381]
[1641186515727,0.02852435,3795.7,3795.6,2.37905657]
[1641186515927,3.57557859,3796.0,3795.6,2.67905657]
[1641186516125,3.57557859,3796.0,3795.7,1.0]
[1641186516326,0.00454739,3795.9,3795.7,1.381]
[1641186516527,0.00454739,3795.9,3795.7,2.03943]
[1641186516725,0.00397897,3795.8,3795.7,2.03943]
[1641186517527,0.00397897,3795.8,3795.7,4.68845376]
[1641186519175,0.00397897,3795.8,3795.7,3.68845376]
[1641186519378,0.00397897,3795.8,3795.7,0.381]
[1641186521380,0.00397897,3795.8,3795.6,0.0308063]
[1641186521826,0.00341054,3795.7,3795.6,0.0308063]
[1641186524828,0.00341054,3795.7,3795.5,1.7703832]
[1641186525227,0.00284212,3795.6,3795.4,8.25666862]
[1641186525683,0.0022737,3795.5,3795.4,8.25666862]
[1641186526083,0.0022737,3795.5,3795.4,5.68808027]
[1641186526284,0.0022737,3795.5,3795.4,4.62322593]
[1641186526692,0.0022737,3795.5,3795.4,7.15546557]
[1641186527295,0.0022737,3795.5,3795.4,4.56988606]
[1641186527493,0.0022737,3795.5,3795.4,7.11137091]
[1641186527694,0.0022737,3795.5,3795.4,4.56988606]
[1641186528098,0.0022737,3795.5,3795.4,4.60069418]
[1641186529733,0.0022737,3795.5,3795.4,4.59981418]
[1641186530340,0.0022737,3795.5,3795.4,4.59616418]
[1641186531537,0.0022737,3795.5,3795.4,7.11555434]
[1641186531740,0.0022737,3795.5,3795.4,4.59616418]
[1641186542883,0.0022737,3795.5,3795.4,8.04616418]
[1641186543082,0.0022737,3795.5,3795.4,9.64616418]
[1641186544088,0.0022737,3795.5,3795.4,10.30467418]
[1641186544325,0.0022737,3795.5,3795.4,9.64616418]
[1641186545123,0.0022737,3795.5,3795.4,12.3274965]
[1641186545725,0.0022737,3795.5,3795.4,8.8774965]
[1641186545924,0.0022737,3795.5,3795.4,7.2774965]
[1641186546125,0.0022737,3795.5,3795.4,8.2774965]
[1641186546728,0.0022737,3795.5,3795.4,8.5774965]
[1641186547126,0.0022737,3795.5,3795.4,8.42643678]
[1641186547524,0.0022737,3795.5,3795.4,5.89616418]
[1641186547724,0.0022737,3795.5,3795.4,4.59616418]
[1641186548383,0.0022737,3795.5,3795.4,6.37405102]
[1641186549683,0.0022737,3795.5,3795.4,7.67405102]
[1641186550085,0.0022737,3795.5,3795.4,5.89616418]
[1641186550483,0.0022737,3795.5,3795.4,8.42413575]
[1641186550883,0.0022737,3795.5,3795.4,10.20202259]
[1641186551487,0.0022737,3795.5,3795.4,8.42413575]
[1641186552629,0.0022737,3795.5,3795.4,5.89616418]
[1641186553028,0.0022737,3795.5,3795.4,8.4177796]
[1641186553426,0.0022737,3795.5,3795.4,10.20768738]
[1641186553626,0.0022737,3795.5,3795.4,14.08868738]
[1641186553827,0.0022737,3795.5,3795.4,10.58868738]
[1641186554026,0.0022737,3795.5,3795.4,8.7987796]
[1641186555890,0.0022737,3795.5,3795.4,9.0987796]
[1641186556091,2.9871361,3796.0,3795.4,9.0987796]
[1641186556295,2.9871361,3796.0,3795.6,2.47103153]
[1641186556494,0.00454739,3795.9,3795.6,2.77103153]
[1641186556899,0.00397897,3795.8,3795.6,2.77103153]
[1641186557101,0.00397897,3795.8,3795.6,4.5603009]
[1641186557295,2.9871361,3796.0,3795.6,4.5603009]
[1641186557296,0.00341054,3795.7,3795.6,4.5603009]
[1641186557497,0.00341054,3795.7,3795.6,7.06522151]
[1641186557700,2.99054664,3795.7,3795.6,8.06522151]
[1641186558099,0.00341054,3795.7,3795.6,3.77103153]
[1641186558899,2.99054664,3795.7,3795.6,5.5603009]
[1641186559098,2.99054664,3795.7,3795.6,3.74775937]
[1641186559322,2.99054664,3795.7,3795.6,3.75812321]
[1641186559523,2.99054664,3795.7,3795.6,3.78892944]
[1641186559927,2.99054664,3795.7,3795.6,1.99966007]
[1641186560424,2.99054664,3795.7,3795.6,0.99966007]
[1641186560624,2.99054664,3795.7,3795.6,0.04117007]
[1641186568929,2.99054664,3795.7,3795.6,3.54117007]
[1641186569125,2.99054664,3795.7,3795.6,0.04117007]
[1641186587670,2.9871361,3795.7,3795.6,0.04117007]
[1641186589426,2.9871361,3796.0,3795.6,0.04117007]
[1641186589627,2.9871361,3796.0,3795.6,0.69975007]
[1641186589827,2.99225191,3796.0,3795.6,0.69975007]
[1641186590034,2.99225191,3796.0,3795.6,0.34117007]
[1641186590234,2.9871361,3795.9,3795.6,0.34117007]
[1641186590436,2.9871361,3795.9,3795.6,0.04117007]
[1641186590636,0.00397897,3795.8,3795.7,0.65858]
[1641186590839,0.00397897,3795.8,3795.6,0.04117007]
[1641186591244,0.00341054,3795.7,3795.6,0.04117007]
[1641186592042,2.99054664,3795.7,3795.6,0.04117007]
[1641186592241,2.99054664,3795.7,3795.6,0.69974007]
[1641186596090,2.99054664,3795.7,3795.6,0.04117007]
[1641186598728,2.99054664,3795.7,3795.6,0.14117007]
[1641186600583,2.99054664,3795.7,3795.6,0.44117007]
[1641186601975,2.99054664,3795.7,3795.6,0.14117007]
[1641186602371,0.00341054,3795.7,3795.6,0.14117007]
[1641186603378,2.99054773,3795.7,3795.6,0.14117007]
[1641186606542,5.59054773,3795.7,3795.6,0.14117007]
[1641186611081,5.59054773,3795.7,3795.6,0.04117007]
[1641186616082,5.59054773,3795.7,3795.6,1.4620618]
[1641186617493,2.60341054,3795.7,3795.6,1.4620618]
[1641186620224,2.60341054,3795.7,3795.6,0.14117007]
[1641186621427,2.60341054,3795.7,3795.6,0.13080623]
[1641186621629,2.6,3795.7,3795.6,0.13080623]
[1641186623475,5.5869299,3795.7,3795.6,0.13080623]
[1641186629946,5.5869299,3795.7,3795.6,1.9200756]
[1641186630147,5.5869299,3795.7,3795.6,2.9200756]
[1641186630777,5.5869299,3795.7,3795.6,3.2200756]
[1641186630977,5.5869299,3795.7,3795.6,3.5200756]
[1641186632579,5.5869299,3795.7,3795.6,1.73080623]
[1641186636826,5.5869299,3795.7,3795.6,1.43080623]
[1641186637028,5.5869299,3795.7,3795.6,1.13080623]
[1641186637437,5.5869299,3795.7,3795.6,0.13080623]
[1641186637629,5.5869299,3795.7,3795.6,1.13080623]
[1641186638681,5.5869299,3795.7,3795.6,0.13080623]
[1641186639284,5.5869299,3795.7,3795.6,1.9200756]
[1641186639484,5.5869299,3795.7,3795.6,2.9200756]
[1641186642525,5.5869299,3795.7,3795.6,1.9200756]
[1641186644228,5.5869299,3795.7,3795.6,0.13080623]
[1641186654373,2.6,3795.7,3795.6,0.13080623]
[1641186654974,5.58684201,3795.7,3795.6,0.13080623]
[1641186660231,5.58684201,3795.7,3795.6,0.03080623]
[1641186666628,5.58684201,3795.7,3795.6,27.58371603]
[1641186666831,5.58684201,3795.7,3795.6,28.58371603]
[1641186667131,5.58684201,3795.7,3795.6,26.30570489]
[1641186667928,5.58684201,3795.7,3795.6,26.32157607]
[1641186668178,2.6,3795.7,3795.6,26.32157607]
[1641186668579,2.6,3795.7,3795.6,28.7415608]
[1641186670178,0.05345045,3797.0,3795.6,28.7415608]
[1641186670382,0.05345045,3797.0,3796.6,0.1]
[1641186670579,0.05345045,3797.0,3796.6,0.09147365]
[1641186670980,0.00170527,3796.9,3796.6,0.09147365]
[1641186671383,1.78021613,3797.3,3796.8,0.09147365]
[1641186671582,2.8318843,3796.9,3796.8,0.74977365]
[1641186671830,2.8318843,3796.9,3796.8,0.09147365]
[1641186672436,0.00341054,3797.2,3796.8,0.09147365]
[1641186672636,0.00341054,3797.2,3796.9,0.09147365]
[1641186672833,0.00284212,3797.1,3796.9,0.09147365]
[1641186673035,2.83472642,3797.1,3796.9,0.09147365]
[1641186673233,2.42757514,3797.0,3796.9,0.09147365]
[1641186673434,0.0022737,3797.0,3796.9,0.09147365]
[1641186675137,2.834158,3797.0,3796.9,0.09147365]
[1641186675572,2.834158,3797.0,3796.6,0.09147365]
[1641186675775,2.36888924,3796.9,3796.6,0.09147365]
[1641186675974,2.37059451,3796.9,3796.6,0.09147365]
[1641186676175,0.00113685,3796.8,3796.6,0.09147365]
[1641186676579,2.83302115,3796.8,3796.6,0.09147365]
[1641186677374,0.00113685,3796.8,3796.6,0.09147365]
[1641186678978,0.00113685,3796.8,3796.7,0.01583242]
[1641186680248,0.00113685,3796.8,3796.7,0.02251071]
[1641186685080,2.83302115,3796.8,3796.7,0.02251071]
[1641186686381,0.00113685,3796.8,3796.7,0.02251071]
[1641186686821,2.83302115,3796.8,3796.7,0.02251071]
[1641186687426,0.00113685,3796.8,3796.7,0.02251071]
[1641186690972,0.00113685,3796.8,3796.7,0.05330846]
[1641186695929,2.42605556,3796.8,3796.7,0.05330846]
[1641186696129,0.00113685,3796.8,3796.7,0.05330846]
[1641186696530,2.83302115,3796.8,3796.7,0.05330846]
[1641186698383,5.19607769,3796.8,3796.7,0.05330846]
[1641186700880,2.83302115,3796.8,3796.7,0.05330846]
[1641186702732,0.00113685,3796.8,3796.7,0.05330846]
[1641186706186,2.8318843,3796.9,3796.7,0.05330846]
[1641186706387,2.8318843,3796.9,3796.8,0.09147365]
[1641186706792,2.83358957,3796.9,3796.8,0.09147365]
[1641186710251,2.83358957,3796.9,3796.8,0.09815194]
[1641186715601,2.83358957,3796.9,3796.8,0.00667829]
[1641186716943,2.83358957,3796.9,3796.8,0.09815194]
[1641186720352,5.22694659,3796.9,3796.8,0.09815194]
[1641186720591,5.22694659,3796.9,3796.8,0.00667829]
[1641186722284,5.21091924,3796.9,3796.8,0.00667829]
[1641186722484,5.23386892,3796.9,3796.8,0.00667829]
[1641186723290,2.83358957,3796.9,3796.8,0.00667829]
[1641186723490,5.21715431,3796.9,3796.8,0.00667829]
[1641186723689,2.83358957,3796.9,3796.8,0.00667829]
[1641186725243,2.83358957,3796.9,3796.8,0.09815194]
[1641186725442,2.83358957,3796.9,3796.8,0.10851244]
[1641186736677,2.8318843,3796.9,3796.8,0.10851244]
[1641186739833,2.8318843,3796.9,3796.8,0.01703879]
[1641186742234,2.8318843,3796.9,3796.8,0.10851244]
[1641186744884,2.8318843,3796.9,3796.8,0.01703879]
[1641186746083,5.16806313,3796.9,3796.8,0.01703879]
[1641186746285,2.8318843,3796.9,3796.8,0.01703879]
[1641186746686,2.8318843,3796.9,3796.8,0.10851244]
[1641186747344,5.17258201,3796.9,3796.8,0.10851244]
[1641186747543,0.54998756,3796.7,3796.0,1.33912408]
[1641186747743,3.05268436,3796.6,3796.0,1.33912408]
[1641186747944,0.658622,3796.5,3796.1,0.00284211]
[1641186748146,0.381,3796.4,3796.1,0.00284211]
[1641186748646,2.49444928,3796.3,3796.1,0.00284211]
[1641186748848,0.65868,3796.2,3796.1,0.00284211]
[1641186749646,0.65868,3796.2,3795.6,0.00568423]
[1641186749847,3.05630813,3796.2,3795.8,0.0534498]
[1641186750248,3.05630813,3796.2,3795.9,0.00397896]
[1641186750449,5.88819243,3796.2,3795.9,0.00397896]
[1641186750678,3.4905643,3796.2,3795.9,0.00397896]
[1641186751281,2.8318843,3796.1,3795.9,0.00397896]
[1641186751982,0.65864,3796.0,3795.9,0.00397896]
[1641186753082,2.8318843,3796.0,3795.9,0.00397896]
[1641186753685,0.65861,3796.2,3795.9,0.00397896]
[1641186753887,3.00716933,3796.2,3795.9,0.00397896]
[1641186754334,2.8318843,3796.0,3795.9,0.00397896]
[1641186754536,3.4905243,3796.0,3795.9,0.00397896]
[1641186754940,0.65864,3796.0,3795.9,0.00397896]
[1641186755743,3.4905243,3796.0,3795.9,0.00397896]
[1641186756841,6.0905243,3796.0,3795.9,0.00397896]
[1641186757443,6.7597243,3796.0,3795.9,0.00397896]
[1641186762330,6.0905243,3796.0,3795.9,0.00397896]
[1641186762732,7.87074043,3796.0,3795.9,0.00397896]
[1641186764341,7.87074043,3796.0,3795.9,0.03478304]
[1641186765572,6.0905243,3796.0,3795.9,0.03478304]
[1641186765972,7.87074043,3796.0,3795.9,0.03478304]
[1641186766676,6.0905243,3796.0,3795.9,0.03478304]
[1641186778839,6.7783777,3796.0,3795.9,0.03478304]
[1641186780139,6.7783777,3796.0,3795.9,0.03080408]
[1641186785947,3.9464934,3796.0,3795.9,0.03080408]
[1641186786747,6.93376123,3796.0,3795.9,0.03080408]
[1641186792143,6.93376123,3796.0,3795.9,0.05184614]
[1641186799093,9.29281187,3796.0,3795.9,0.05184614]
[1641186799541,6.93376123,3796.0,3795.9,0.05184614]
[1641186799943,9.29246769,3796.0,3795.9,0.05184614]
[1641186800749,8.71397736,3796.0,3795.9,0.05184614]
[1641186800944,11.07053172,3796.0,3795.9,0.05184614]
[1641186801244,11.08801533,3796.0,3795.9,0.05184614]
[1641186801445,8.71397736,3796.0,3795.9,0.05184614]
[1641186802547,11.1205038,3796.0,3795.9,0.05184614]
[1641186802747,11.06920978,3796.0,3795.9,0.05184614]
[1641186803584,8.71397736,3796.0,3795.9,0.05184614]
[1641186804385,11.06613704,3796.0,3795.9,0.05184614]
[1641186804585,11.07688722,3796.0,3795.9,0.05184614]
[1641186804784,8.71397736,3796.0,3795.9,0.05184614]
[1641186804985,11.07370347,3796.0,3795.9,0.05184614]
[1641186805188,11.0677879,3796.0,3795.9,0.05184614]
[1641186805389,8.71397736,3796.0,3795.9,0.05184614]
[1641186805587,11.08118249,3796.0,3795.9,0.05184614]
[1641186806386,8.71397736,3796.0,3795.9,0.05184614]
[1641186806587,11.07863743,3796.0,3795.9,0.05184614]
[1641186806835,11.07879686,3796.0,3795.9,0.05184614]
[1641186807035,11.0721612,3796.0,3795.9,0.05184614]
[1641186807435,11.09005703,3796.0,3795.9,0.05184614]
[1641186807635,11.04445166,3796.0,3795.9,0.05184614]
[1641186808035,8.71397736,3796.0,3795.9,0.05184614]
[1641186808647,11.13930288,3796.0,3795.9,0.05184614]
[1641186808940,8.71397736,3796.0,3795.9,0.05184614]
[1641186809339,11.05988569,3796.0,3795.9,0.05184614]
[1641186809940,8.71397736,3796.0,3795.9,0.05184614]
[1641186811796,11.04564076,3796.0,3795.9,0.05184614]
[1641186813295,8.71397736,3796.0,3795.9,0.05184614]
[1641186814100,11.07318115,3796.0,3795.9,0.05184614]
[1641186816741,8.71397736,3796.0,3795.9,0.05184614]
[1641186817043,9.2778871,3796.0,3795.9,0.05184614]
[1641186819095,11.06178786,3796.0,3795.9,0.05184614]
[1641186821833,9.2778871,3796.0,3795.9,0.05184614]
[1641186822737,9.40931135,3796.0,3795.9,0.05184614]
[1641186824539,11.19321211,3796.0,3795.9,0.05184614]
[1641186824739,8.71766199,3796.0,3795.9,0.05184614]
[1641186825342,10.23340861,3796.0,3795.9,0.05184614]
[1641186825593,13.86304797,3796.0,3795.9,0.05184614]
[1641186825792,14.54404797,3796.0,3795.9,0.05184614]
[1641186825989,11.99404797,3796.0,3795.9,0.05184614]
[1641186826391,8.61476123,3796.0,3795.9,0.05184614]
[1641186826597,12.21476123,3796.0,3795.9,0.05184614]
[1641186826793,3.55,3795.9,3795.8,0.0534498]
[1641186826995,5.231,3795.9,3795.8,0.0534498]
[1641186827194,7.20765,3795.9,3795.8,0.00454738]
[1641186827599,7.20765,3795.9,3795.5,0.00625265]
[1641186827794,0.65885,3795.7,3795.5,0.05936103]
[1641186827995,2.41677408,3795.6,3795.5,0.05936103]
[1641186828195,2.41677408,3795.6,3795.5,0.05310838]
[1641186828395,4.73444408,3795.6,3795.5,0.05310838]
[1641186828596,6.51117697,3795.6,3795.5,0.05310838]
[1641186828797,7.19914396,3795.6,3795.5,0.05310838]
[1641186829201,7.19914396,3795.6,3795.4,4.56988606]
[1641186829441,2.47403943,3795.5,3795.4,4.56988606]
[1641186829639,3.47403943,3795.5,3795.4,4.56988606]
[1641186829838,3.47403943,3795.5,3795.4,4.57670714]
[1641186830644,6.46130726,3795.5,3795.4,4.57670714]
[1641186832548,0.65899,3794.6,3794.3,3.49331858]
[1641186832743,0.84099,3794.6,3794.3,3.49331858]
[1641186832944,0.84099,3794.6,3794.4,0.00568423]
[1641186833695,1.87767412,3794.5,3794.4,0.00568423]
[1641186834303,4.86494195,3794.5,3794.4,0.00568423]
[1641186835299,3.64624783,3794.5,3794.4,0.00568423]
[1641186838149,3.64624783,3794.5,3794.4,0.01626437]
[1641186839150,6.24624783,3794.5,3794.4,0.01626437]
[1641186846641,3.25898,3794.5,3794.4,0.01626437]
[1641186859195,3.94706114,3794.5,3794.4,0.01626437]
[1641186862947,3.94706114,3794.5,3794.4,0.01058014]
[1641186863801,3.94706114,3794.5,3794.4,0.01576347]
[1641186864201,6.93512012,3794.5,3794.4,0.01576347]
[1641186870056,6.88512012,3794.5,3794.4,0.01576347]
[1641186898965,9.16967255,3794.5,3794.4,0.01576347]
[1641186899167,6.88512012,3794.5,3794.4,0.01576347]
[1641186899369,8.89972012,3794.5,3794.4,0.01576347]
[1641186899566,12.19972012,3794.5,3794.4,0.01576347]
[1641186899769,9.19972012,3794.5,3794.4,0.01576347]
[1641186902810,7.89972012,3794.5,3794.4,0.01576347]
[1641186903012,6.88512012,3794.5,3794.4,0.01576347]
[1641186903212,6.27614012,3794.5,3794.4,0.01576347]
[1641186909609,6.27614012,3794.5,3794.4,0.06647417]
[1641186915696,6.27614012,3794.5,3794.4,3.56647417]
[1641186916100,6.27614012,3794.5,3794.4,0.06647417]
[1641186942454,6.27614012,3794.5,3794.3,2.85979275]
[1641186942651,6.93507012,3794.5,3794.3,2.85979275]
[1641186943659,2.98805898,3794.4,3794.3,2.85979275]
[1641186944057,2.98805898,3794.4,3794.3,2.86604541]
[1641186953903,3.67613657,3794.4,3794.3,2.86604541]
[1641186960360,6.08430169,3794.4,3794.3,2.86604541]
[1641186960799,7.4798136,3794.4,3794.3,2.86604541]
[1641186964208,5.07164848,3794.4,3794.3,2.86604541]
[1641186965053,3.67613657,3794.4,3794.3,2.86604541]
[1641186965654,6.06654806,3794.4,3794.3,2.86604541]
[1641186965853,3.67613657,3794.4,3794.3,2.86604541]
[1641186966253,7.31245885,3794.4,3794.3,2.86604541]
[1641186966853,7.26245885,3794.4,3794.3,2.86604541]
[1641186967358,4.9064011,3794.4,3794.3,2.86604541]
[1641186972072,3.62613657,3794.4,3794.3,2.86604541]
[1641186973974,3.62613657,3794.4,3794.3,2.85979275]
[1641187000914,3.62613657,3794.4,3794.3,2.76303194]
[1641187003362,3.62613657,3794.4,3794.3,5.34039548]
[1641187003561,3.62613657,3794.4,3794.3,5.64039548]
[1641187005263,3.62613657,3794.4,3794.3,3.06303194]
[1641187008222,3.62613657,3794.4,3794.3,2.76303194]
[1641187012468,3.62613657,3794.4,3794.3,3.06303194]
[1641187014430,0.68807759,3794.4,3794.3,3.06303194]
[1641187018768,0.68807759,3794.4,3794.3,2.76303194]
[1641187018970,3.67609513,3794.4,3794.3,2.76303194]
[1641187024017,3.67609513,3794.4,3794.3,5.64202801]
[1641187024018,2.98801754,3794.4,3794.3,5.64202801]
[1641187024470,2.98801754,3794.4,3794.3,2.76303194]
[1641187024668,2.6,3794.5,3794.3,2.76303194]
[1641187024876,4.40462805,3794.5,3794.3,2.76303194]
[1641187025069,3.66467874,3794.4,3794.3,2.76303194]
[1641187025468,1.0,3794.4,3794.3,2.7692846]
[1641187025668,3.98858721,3794.4,3794.3,2.7692846]
[1641187026670,6.66711411,3794.4,3794.3,2.7692846]
[1641187027669,7.04811411,3794.4,3794.3,2.7692846]
[1641187028109,6.66711411,3794.4,3794.3,2.7692846]
[1641187028313,5.66711411,3794.4,3794.3,2.7692846]
[1641187031721,2.98858721,3794.4,3794.3,2.7692846]
[1641187031970,5.65326595,3794.4,3794.3,2.7692846]
[1641187032168,4.36958721,3794.4,3794.3,2.7692846]
[1641187033474,4.36958721,3794.4,3794.3,0.14565531]
[1641187033680,4.76958721,3794.4,3794.3,0.14565531]
[1641187033875,4.77358721,3794.4,3794.3,0.14565531]
[1641187034075,4.77438721,3794.4,3794.3,0.14565531]
[1641187034274,4.77358721,3794.4,3794.3,0.14565531]
[1641187034676,4.77278721,3794.4,3794.3,0.14565531]
[1641187035617,7.70800095,3794.4,3794.3,0.14565531]
[1641187036313,7.70480095,3794.4,3794.3,0.14565531]
[1641187036512,7.70400095,3794.4,3794.3,0.14565531]
[1641187036711,7.60480095,3794.4,3794.3,0.14565531]
[1641187037514,7.60480095,3794.4,3794.3,0.09565531]
[1641187038315,7.30480095,3794.4,3794.3,0.09565531]
[1641187038517,7.30480095,3794.4,3794.3,0.11649917]
[1641187039117,7.40320095,3794.4,3794.3,0.11649917]
[1641187039368,7.30480095,3794.4,3794.3,0.11649917]
[1641187042382,7.40560095,3794.4,3794.3,0.11649917]
[1641187042578,7.30480095,3794.4,3794.3,0.11649917]
[1641187042779,7.40480095,3794.4,3794.3,0.11649917]
[1641187043213,7.40400095,3794.4,3794.3,0.11649917]
[1641187043414,7.40480095,3794.4,3794.3,0.11649917]
[1641187043812,7.40320095,3794.4,3794.3,0.11649917]
[1641187044016,7.40400095,3794.4,3794.3,0.11649917]
[1641187044714,7.70320095,3794.4,3794.3,0.11649917]
[1641187044914,7.60480095,3794.4,3794.3,0.11649917]
[1641187045113,7.71040095,3794.4,3794.3,0.11649917]
[1641187045314,7.71120095,3794.4,3794.3,0.11649917]
[1641187045914,7.71040095,3794.4,3794.3,0.11649917]
[1641187046114,7.71200095,3794.4,3794.3,0.11649917]
[1641187046317,7.71120095,3794.4,3794.3,0.11649917]
[1641187046520,7.40480095,3794.4,3794.3,0.11649917]
[1641187046724,7.30480095,3794.4,3794.3,0.11649917]
[1641187048568,4.36958721,3794.4,3794.3,0.11649917]
[1641187048771,2.98858721,3794.4,3794.3,0.11649917]
[1641187055476,2.98858721,3794.4,3794.3,0.11024651]
[1641187058123,2.6,3794.5,3794.3,5.26024651]
[1641187058320,2.6,3794.5,3794.4,8.06394117]
[1641187058521,2.6,3794.5,3794.4,9.0696254]
[1641187058924,2.6,3794.5,3794.4,8.3696254]
[1641187059119,2.6,3794.5,3794.4,9.3696254]
[1641187059320,2.6,3794.5,3794.4,3.9696254]
[1641187059520,2.6,3794.5,3794.4,1.30568423]
[1641187059925,2.6,3794.5,3794.4,3.83078466]
[1641187060120,2.6,3794.5,3794.4,3.82931942]
[1641187062768,2.6,3794.5,3794.4,1.30568423]
[1641187063371,2.6,3794.5,3794.4,3.85088275]
[1641187063572,2.6,3794.5,3794.4,1.30568423]
[1641187063772,2.6,3794.5,3794.4,3.8298716]
[1641187063972,2.6,3794.5,3794.4,3.95568423]
[1641187064173,2.6,3794.5,3794.4,7.26520473]
[1641187064377,2.6,3794.5,3794.4,7.2860439]
[1641187064773,2.6,3794.5,3794.4,6.6273139]
[1641187065620,2.6,3794.5,3794.4,1.3265234]
[1641187065824,2.6,3794.5,3794.4,3.85828266]
[1641187066124,2.6,3794.5,3794.4,7.3765234]
[1641187066822,2.6,3794.5,3794.4,4.6265234]
[1641187067426,2.6,3794.5,3794.4,1.3265234]
[1641187067629,2.6,3794.5,3794.4,0.3265234]
[1641187067826,2.6,3794.5,3794.4,1.3265234]
[1641187068231,2.6,3794.5,3794.4,0.0265234]
[1641187068428,2.6,3794.5,3794.4,2.8265234]
[1641187068629,2.6,3794.5,3794.4,0.3265234]
[1641187069028,2.6,3794.5,3794.4,0.0265234]
[1641187081420,2.6,3794.5,3794.4,3.5265234]
[1641187081818,2.6,3794.5,3794.4,0.0265234]
[1641187082824,2.6,3794.5,3794.4,0.3265234]
[1641187083422,5.58787798,3794.5,3794.4,0.3265234]
[1641187083825,2.6,3794.5,3794.4,0.3265234]
[1641187084671,5.58787798,3794.5,3794.4,0.3265234]